bitfinex/quotes_BTCUSD_20250109
["timestamp","ask_amount","ask_price","bid_price","bid_amount"]
[1736431402700,5.87796273,92123.0,92122.0,48.09682536]
[1736431402913,5.86696273,92123.0,92122.0,48.07411536]
[1736431403138,5.87804722,92123.0,92122.0,47.98727536]
[1736431403354,6.02730944,92123.0,92122.0,47.95917758]
[1736431403564,6.32730944,92123.0,92122.0,47.84529243]
[1736431403785,6.32833345,92123.0,92122.0,47.82296165]
[1736431404001,6.32833345,92123.0,92122.0,47.80125165]
[1736431404212,6.32730944,92123.0,92122.0,47.73612165]
[1736431404457,6.33630944,92123.0,92122.0,47.71441165]
[1736431404668,6.13811815,92123.0,92122.0,47.71441165]
[1736431404886,6.14162856,92123.0,92122.0,47.67099165]
[1736431405110,6.14162856,92123.0,92122.0,47.60686165]
[1736431405111,2.14971556,92123.0,92122.0,47.60686165]
[1736431405321,6.19721879,92123.0,92122.0,47.60586165]
[1736431405533,6.18750838,92123.0,92122.0,47.60586165]
[1736431405741,6.19970838,92123.0,92122.0,47.60586165]
[1736431405953,6.19770838,92123.0,92122.0,47.54073165]
[1736431406172,6.20670838,92123.0,92122.0,47.49831165]
[1736431406408,6.11670838,92123.0,92122.0,47.40831165]
[1736431406646,5.38070838,92123.0,92122.0,46.66131165]
[1736431406859,3.03121879,92123.0,92122.0,44.27062565]
[1736431407073,1.94282219,92123.0,92122.0,44.20549565]
[1736431407277,2.54027068,92123.0,92122.0,44.20549565]
[1736431407495,3.03032798,92123.0,92122.0,44.20549565]
[1736431407728,2.73032798,92123.0,92122.0,44.20549565]
[1736431407939,2.73498291,92123.0,92122.0,44.14036565]
[1736431408154,2.68364833,92123.0,92122.0,44.09694565]
[1736431408578,2.69964833,92123.0,92122.0,44.09694565]
[1736431409046,2.70664833,92123.0,92122.0,43.9919522]
[1736431409264,2.24364833,92123.0,92122.0,43.5112422]
[1736431409514,2.17664833,92123.0,92122.0,43.4472422]
[1736431409787,2.47664833,92123.0,92122.0,43.4472422]
[1736431410299,2.4769235,92123.0,92122.0,43.4038222]
[1736431410571,2.4769235,92123.0,92122.0,43.3386922]
[1736431410828,1.99067826,92123.0,92122.0,43.338604]
[1736431411090,1.86225326,92123.0,92122.0,43.338604]
[1736431411306,1.67445326,92123.0,92122.0,43.338604]
[1736431411518,1.17549436,92123.0,92122.0,43.310604]
[1736431411729,1.0029703,92123.0,92122.0,43.310604]
[1736431411953,0.48590615,92123.0,92122.0,43.433004]
[1736431412170,0.33360076,92123.0,92122.0,43.433004]
[1736431412397,0.0212,92123.0,92122.0,43.433004]
[1736431412610,0.0122,92123.0,92122.0,43.433004]
[1736431412849,0.382301,92123.0,92122.0,43.433004]
[1736431413080,0.83530516,92123.0,92122.0,43.433004]
[1736431413282,5.98530516,92123.0,92122.0,43.433004]
[1736431413493,4.86733175,92123.0,92122.0,43.433004]
[1736431413708,0.229101,92123.0,92122.0,43.433004]
[1736431414155,3.91011306,92123.0,92122.0,43.387004]
[1736431414385,4.82611306,92123.0,92122.0,43.309604]
[1736431414594,4.83411306,92123.0,92122.0,43.309604]
[1736431414806,4.70111306,92123.0,92122.0,43.309604]
[1736431415012,5.49176406,92123.0,92122.0,43.309604]
[1736431415223,5.14676406,92123.0,92122.0,43.309604]
[1736431415469,5.04676406,92123.0,92122.0,43.309604]
[1736431415678,2.67091306,92123.0,92122.0,43.309604]
[1736431415899,2.69211306,92123.0,92122.0,43.309604]
[1736431416367,1.16111306,92123.0,92122.0,43.309604]
[1736431416587,3.59163906,92123.0,92122.0,43.281604]
[1736431416807,2.3873393,92123.0,92122.0,43.281604]
[1736431417013,1.2938133,92123.0,92122.0,43.281604]
[1736431417435,1.54811306,92123.0,92122.0,43.281604]
[1736431417644,1.54911306,92123.0,92122.0,43.281604]
[1736431418081,1.54811306,92123.0,92122.0,43.281604]
[1736431419389,2.36976386,92123.0,92122.0,43.281604]
[1736431419910,2.14527896,92123.0,92122.0,43.281604]
[1736431420174,2.34527896,92123.0,92122.0,43.281604]
[1736431420409,2.46827896,92123.0,92122.0,43.281604]
[1736431421133,2.47127896,92123.0,92122.0,43.281604]
[1736431421367,2.16529752,92123.0,92122.0,43.281604]
[1736431421613,1.66340672,92123.0,92122.0,43.281604]
[1736431421944,1.76540672,92123.0,92122.0,43.281604]
[1736431422152,2.48705342,92123.0,92122.0,43.281604]
[1736431422378,2.48505342,92123.0,92122.0,43.281604]
[1736431422587,2.48860978,92123.0,92122.0,43.253604]
[1736431422791,2.48699764,92123.0,92122.0,43.253604]
[1736431423192,2.16399764,92123.0,92122.0,43.253604]
[1736431423421,1.29437238,92123.0,92122.0,43.253604]
[1736431423556,0.4917123,92123.0,92122.0,43.381204]
[1736431423793,0.434193,92125.0,92122.0,43.381204]
[1736431423794,0.217096,92125.0,92122.0,43.381204]
[1736431424011,0.28432261,92128.0,92123.0,0.0583]
[1736431424227,0.217091,92127.0,92123.0,0.0583]
[1736431424459,0.15,92124.0,92122.0,43.254604]
[1736431424673,2.62840076,92123.0,92122.0,43.253604]
[1736431424894,2.67192476,92123.0,92122.0,43.254604]
[1736431425293,2.67192476,92123.0,92122.0,43.253604]
[1736431425502,2.67192476,92123.0,92122.0,43.254604]
[1736431425760,3.27057666,92123.0,92122.0,43.254604]
[1736431425966,3.27057666,92123.0,92122.0,43.253604]
[1736431426192,3.37157666,92123.0,92122.0,43.253604]
[1736431426423,3.37145653,92123.0,92122.0,43.225604]
[1736431426663,3.49445653,92123.0,92122.0,43.225604]
[1736431426893,3.49445653,92123.0,92122.0,43.182184]
[1736431427468,3.50201821,92123.0,92122.0,43.161474]
[1736431427670,3.49301821,92123.0,92122.0,43.117054]
[1736431428027,3.50101821,92123.0,92122.0,43.118054]
[1736431428319,3.49201821,92123.0,92122.0,43.117054]
[1736431428519,3.49401821,92123.0,92122.0,43.118054]
[1736431428711,3.50301821,92123.0,92122.0,43.118054]
[1736431428916,3.49201821,92123.0,92122.0,43.117054]
[1736431429270,3.50401821,92123.0,92122.0,43.118054]
[1736431429492,3.41597821,92123.0,92122.0,43.118054]
[1736431429696,1.35897821,92123.0,92122.0,43.118054]
[1736431429900,6.60897821,92123.0,92122.0,43.118054]
[1736431430156,6.50897821,92123.0,92122.0,43.118054]
[1736431431019,6.40897821,92123.0,92122.0,43.118054]
[1736431431243,5.78732631,92123.0,92122.0,43.118054]
[1736431431455,5.672625,92123.0,92122.0,43.118054]
[1736431431671,4.936061,92123.0,92122.0,43.090054]
[1736431431892,2.047061,92123.0,92122.0,43.090054]
[1736431432105,2.13936076,92123.0,92122.0,43.089054]
[1736431432335,2.14836076,92123.0,92122.0,43.089054]
[1736431432626,2.15136076,92123.0,92122.0,43.089054]
[1736431432837,2.74700776,92123.0,92122.0,43.089054]
[1736431433263,2.73800776,92123.0,92122.0,43.089054]
[1736431433894,2.96100776,92123.0,92122.0,43.023924]
[1736431434098,2.96100776,92123.0,92122.0,42.980504]
[1736431434969,2.96100776,92123.0,92122.0,42.937084]
[1736431434970,2.97000776,92123.0,92122.0,42.937084]
[1736431435173,2.96004776,92123.0,92122.0,42.871954]
[1736431435378,2.96300776,92123.0,92122.0,42.871954]
[1736431435799,2.96100776,92123.0,92122.0,42.871954]
[1736431436001,2.97000776,92123.0,92122.0,42.785114]
[1736431436207,2.9900229,92123.0,92122.0,42.763404]
[1736431436608,2.9900229,92123.0,92122.0,42.735404]
[1736431436986,2.99179764,92123.0,92122.0,42.626854]
[1736431437790,2.9900229,92123.0,92122.0,42.626854]
[1736431438215,2.9900229,92123.0,92122.0,42.561724]
[1736431438398,2.9900229,92123.0,92122.0,42.540014]
[1736431438875,2.8900229,92123.0,92122.0,42.518304]
[1736431439106,2.9900229,92123.0,92122.0,42.474884]
[1736431439950,2.9900229,92123.0,92122.0,42.453174]
[1736431440171,2.9900229,92123.0,92122.0,42.366334]
[1736431440605,6.5840229,92123.0,92122.0,42.366334]
[1736431441095,6.90914608,92123.0,92122.0,42.16871558]
[1736431441318,6.93602464,92123.0,92122.0,41.10448331]
[1736431441530,6.93602464,92123.0,92122.0,40.94838331]
[1736431441749,6.89302464,92123.0,92122.0,40.91438331]
[1736431441968,6.58728076,92123.0,92122.0,40.47054331]
[1736431442189,6.40328076,92123.0,92122.0,40.23583331]
[1736431442404,5.87528076,92123.0,92122.0,40.13883331]
[1736431442619,5.57902464,92123.0,92122.0,39.47983331]
[1736431442849,4.04702464,92123.0,92122.0,33.50667649]
[1736431443071,4.02014608,92123.0,92122.0,32.98450509]
[1736431443282,4.02014608,92123.0,92122.0,31.55046387]
[1736431443520,4.02014608,92123.0,92122.0,31.11513247]
[1736431443521,3.72759964,92123.0,92122.0,31.11513247]
[1736431443741,3.72759964,92123.0,92122.0,29.18491295]
[1736431443975,3.72914608,92123.0,92122.0,28.43445155]
[1736431444212,4.02935821,92123.0,92122.0,27.40943045]
[1736431444431,4.02935821,92123.0,92122.0,26.53881065]
[1736431444647,4.02035821,92123.0,92122.0,26.53881065]
[1736431444835,4.02035821,92123.0,92122.0,25.04292606]
[1736431445085,4.02035821,92123.0,92122.0,24.27608017]
[1736431445086,4.00582964,92123.0,92122.0,24.27608017]
[1736431445302,3.98782964,92123.0,92122.0,22.95435142]
[1736431445520,3.98782964,92123.0,92122.0,22.9331414]
[1736431445521,3.87257307,92123.0,92122.0,22.9331414]
[1736431445729,3.99057307,92123.0,92122.0,22.03920259]
[1736431445941,3.98157307,92123.0,92122.0,20.22472894]
[1736431446153,3.98959417,92123.0,92122.0,20.13472894]
[1736431446369,3.99859417,92123.0,92122.0,18.75155236]
[1736431446587,3.99859417,92123.0,92122.0,17.35296806]
[1736431446812,3.9965156,92123.0,92122.0,17.05196806]
[1736431447024,3.9965156,92123.0,92122.0,16.40812216]
[1736431447025,3.36270886,92123.0,92122.0,16.40812216]
[1736431447240,3.56270886,92123.0,92122.0,15.53748834]
[1736431447487,3.56270886,92123.0,92122.0,15.09216649]
[1736431447488,3.66453286,92123.0,92122.0,15.09216649]
[1736431447700,3.66453286,92123.0,92122.0,15.07316649]
[1736431447701,3.67765143,92123.0,92122.0,15.07316649]
[1736431447911,3.45289286,92123.0,92122.0,14.55099509]
[1736431448120,3.68493676,92123.0,92122.0,14.09398268]
[1736431448335,3.67593676,92123.0,92122.0,13.65865128]
[1736431448565,3.70793676,92123.0,92122.0,13.21332343]
[1736431448791,3.71693676,92123.0,92122.0,13.21332343]
[1736431449001,3.70793676,92123.0,92122.0,12.75628203]
[1736431449214,3.70793676,92123.0,92122.0,12.23411063]
[1736431449428,4.00793676,92123.0,92122.0,11.79877923]
[1736431449866,4.01511276,92123.0,92122.0,10.68448788]
[1736431450100,4.01693676,92123.0,92122.0,10.14060748]
[1736431450319,4.01693676,92123.0,92122.0,9.62727708]
[1736431450537,5.19403676,92123.0,92122.0,8.98265273]
[1736431450761,4.70757276,92123.0,92122.0,8.93918515]
[1736431450972,3.45021417,92123.0,92122.0,5.85234515]
[1736431451154,3.44121417,92123.0,92122.0,5.85234515]
[1736431451426,3.34121417,92123.0,92122.0,5.85234515]
[1736431451649,2.56321417,92123.0,92122.0,5.82434515]
[1736431451864,2.5276485,92123.0,92122.0,5.82434515]
[1736431452072,2.53478917,92123.0,92122.0,5.82434515]
[1736431452286,2.54378917,92123.0,92122.0,5.82434515]
[1736431452525,0.12404117,92123.0,92122.0,5.82434515]
[1736431452758,0.08810026,92124.0,92122.0,5.90724515]
[1736431452978,0.217065,92139.0,92123.0,0.0314]
[1736431453199,0.0947902,92125.0,92124.0,0.1]
[1736431453416,0.0947902,92125.0,92124.0,0.20429976]
[1736431454304,0.00108403,92137.0,92130.0,0.1]
[1736431454517,0.1,92152.0,92133.0,0.1]
[1736431454732,0.05956485,92155.0,92138.0,0.1]
[1736431454949,0.05956485,92155.0,92139.0,0.09738495]
[1736431455164,0.00152669,92160.0,92139.0,0.09738495]
[1736431455378,0.0001702,92160.0,92145.0,0.1]
[1736431455592,0.0001702,92160.0,92151.0,0.1]
[1736431455808,0.0001702,92160.0,92152.0,0.20429976]
[1736431456026,0.0001702,92160.0,92152.0,0.1]
[1736431456248,0.0001702,92160.0,92143.0,0.1]
[1736431456456,0.00135639,92159.0,92144.0,0.10429976]
[1736431456667,0.00135639,92159.0,92143.0,0.20429976]
[1736431456878,0.00152654,92160.0,92145.0,0.10429976]
[1736431457089,0.00252654,92160.0,92152.0,0.003]
[1736431457527,0.15,92154.0,92152.0,0.003]
[1736431457755,0.15,92154.0,92122.0,5.8238446]
[1736431457756,0.15,92150.0,92125.0,0.1]
[1736431458021,0.15,92148.0,92143.0,0.002]
[1736431458266,0.1,92154.0,92143.0,0.002]
[1736431458516,0.217042,92148.0,92143.0,0.002]
[1736431458763,0.1,92144.0,92143.0,0.002]
[1736431459011,0.00135676,92144.0,92143.0,0.002]
[1736431459520,0.15,92129.0,92126.0,0.00050055]
[1736431459759,0.15,92140.0,92126.0,0.00050055]
[1736431460012,0.21841975,92139.0,92126.0,0.00050055]
[1736431460257,0.217057,92142.0,92126.0,0.00050055]
[1736431460505,0.00135672,92138.0,92126.0,0.00050055]
[1736431460754,0.21706,92140.0,92126.0,0.00050055]
[1736431461008,0.15,92141.0,92126.0,0.00050055]
[1736431461260,0.15,92138.0,92126.0,0.00050055]
[1736431461511,0.15,92130.0,92126.0,0.00050055]
[1736431461761,0.15,92130.0,92122.0,5.79634515]
[1736431461762,0.21844289,92129.0,92122.0,5.79634515]
[1736431462013,0.15,92126.0,92122.0,5.79634515]
[1736431462220,0.15,92124.0,92122.0,5.79634515]
[1736431462781,3.95140076,92123.0,92122.0,5.79634515]
[1736431463531,5.28140076,92123.0,92122.0,5.79634515]
[1736431463783,5.05240076,92123.0,92122.0,5.79834515]
[1736431463992,4.99940076,92123.0,92122.0,5.79834515]
[1736431464255,4.99940076,92123.0,92122.0,5.77463515]
[1736431464504,5.69931232,92123.0,92122.0,5.68779515]
[1736431464794,5.70031232,92123.0,92122.0,5.68779515]
[1736431465035,5.70806746,92123.0,92122.0,5.68779515]
[1736431465239,5.70806746,92123.0,92122.0,5.57924515]
[1736431465489,5.69906746,92123.0,92122.0,5.57924515]
[1736431465748,5.70806746,92123.0,92122.0,5.57924515]
[1736431466009,5.70706746,92123.0,92122.0,5.55753515]
[1736431466259,5.70806746,92123.0,92122.0,5.47069515]
[1736431466767,2.39040076,92123.0,92122.0,5.44269515]
[1736431467026,2.11540076,92123.0,92122.0,5.44269515]
[1736431467248,0.83340076,92123.0,92122.0,5.44269515]
[1736431467461,0.83740076,92123.0,92122.0,5.44269515]
[1736431468107,0.82840076,92123.0,92122.0,5.44269515]
[1736431468318,0.83740076,92123.0,92122.0,5.44269515]
[1736431468523,1.43605336,92123.0,92122.0,5.33414515]
[1736431468732,1.42305336,92123.0,92122.0,5.33414515]
[1736431468939,1.43205336,92123.0,92122.0,5.29072515]
[1736431469149,1.53605336,92123.0,92122.0,5.22559515]
[1736431469354,1.52705336,92123.0,92122.0,5.22559515]
[1736431469571,1.52305336,92123.0,92122.0,5.22559515]
[1736431469795,2.87815336,92123.0,92122.0,5.22559515]
[1736431470011,2.96251665,92123.0,92122.0,4.98894515]
[1736431470449,2.07875336,92123.0,92122.0,4.98894515]
[1736431470665,2.10175336,92123.0,92122.0,4.98894515]
[1736431470885,2.95675336,92123.0,92122.0,4.98894515]
[1736431471130,2.95675336,92123.0,92122.0,4.90210515]
[1736431471390,2.95475336,92123.0,92122.0,4.88039515]
[1736431471665,2.93175336,92123.0,92122.0,4.85239515]
[1736431471918,2.73175336,92123.0,92122.0,4.85239515]
[1736431472175,2.74075336,92123.0,92122.0,4.85239515]
[1736431472418,2.78575336,92123.0,92122.0,4.74384515]
[1736431472637,2.77875336,92123.0,92122.0,4.74384515]
[1736431472858,2.78775336,92123.0,92122.0,4.72213515]
[1736431473068,2.89475336,92123.0,92122.0,4.67871515]
[1736431473273,2.88575336,92123.0,92122.0,4.63529515]
[1736431473491,2.87875336,92123.0,92122.0,4.63529515]
[1736431473940,2.88575336,92123.0,92122.0,4.63529515]
[1736431474367,2.88575336,92123.0,92122.0,4.59187515]
[1736431474580,2.87875336,92123.0,92122.0,4.54845515]
[1736431475008,2.87875336,92123.0,92122.0,4.48326515]
[1736431475244,2.90175336,92123.0,92122.0,4.41813515]
[1736431475999,2.90175336,92123.0,92122.0,4.39642515]
[1736431476000,3.09061293,92123.0,92122.0,4.39642515]
[1736431476212,3.09061293,92123.0,92122.0,4.30958515]
[1736431476493,3.09761293,92123.0,92122.0,4.30958515]
[1736431476751,3.09761293,92123.0,92122.0,4.28158515]
[1736431476984,3.17355355,92123.0,92122.0,4.25987515]
[1736431477235,3.17566462,92123.0,92122.0,4.17303515]
[1736431477988,3.15266462,92123.0,92122.0,4.07761515]
[1736431478246,2.68133265,92123.0,92122.0,4.01248515]
[1736431478504,2.04773265,92123.0,92122.0,4.01248515]
[1736431478949,2.04773265,92123.0,92122.0,3.99077515]
[1736431479168,2.04773265,92123.0,92122.0,3.94735515]
[1736431479388,2.04773265,92123.0,92122.0,3.90393515]
[1736431479617,2.04083,92123.0,92122.0,3.90393515]
[1736431479828,2.89583,92123.0,92122.0,3.77583515]
[1736431480251,2.79583,92123.0,92122.0,3.56089515]
[1736431480467,2.79583,92123.0,92122.0,3.53918515]
[1736431480678,2.78883,92123.0,92122.0,3.53918515]
[1736431480890,2.89783,92123.0,92122.0,3.51747515]
[1736431481102,2.89783,92123.0,92122.0,3.45234515]
[1736431481325,2.89783,92123.0,92122.0,3.42623515]
[1736431481550,2.89783,92123.0,92122.0,3.29423515]
[1736431481551,2.90067,92123.0,92122.0,3.29423515]
[1736431481760,2.99722497,92123.0,92122.0,3.19623515]
[1736431481969,2.99722497,92123.0,92122.0,2.97510515]
[1736431482197,2.99722497,92123.0,92122.0,2.86168515]
[1736431482419,2.99893786,92123.0,92122.0,0.12468515]
[1736431482651,2.87399618,92123.0,92122.0,0.02205664]
[1736431482893,0.35,92102.0,92101.0,0.00853049]
[1736431483130,0.1,92089.0,92088.0,99.88000009]
[1736431483345,1.77329976,92089.0,92088.0,99.88000009]
[1736431483560,3.01213946,92089.0,92088.0,99.88000009]
[1736431483769,3.03177898,92089.0,92088.0,99.88000009]
[1736431484424,3.03228035,92089.0,92088.0,99.88000009]
[1736431484635,3.04128035,92089.0,92088.0,99.88000009]
[1736431484850,3.04930221,92089.0,92088.0,99.88000009]
[1736431485068,3.03228035,92089.0,92088.0,99.88000009]
[1736431485283,3.04128035,92089.0,92088.0,99.88000009]
[1736431485525,3.03228035,92089.0,92088.0,99.88000009]
[1736431485734,3.03828035,92089.0,92088.0,99.88343335]
[1736431486473,3.03828035,92089.0,92088.0,99.85543335]
[1736431486698,3.03228035,92089.0,92088.0,99.85543335]
[1736431486925,3.05830238,92089.0,92088.0,99.85543335]
[1736431487127,2.8848155,92089.0,92088.0,99.85543335]
[1736431487327,2.8758155,92089.0,92088.0,99.85543335]
[1736431487540,2.8788155,92089.0,92088.0,99.85543335]
[1736431487951,2.8758155,92089.0,92088.0,99.85543335]
[1736431488158,2.8848155,92089.0,92088.0,99.85543335]
[1736431488367,2.9788155,92089.0,92088.0,99.85543335]
[1736431488576,3.07229806,92089.0,92088.0,99.85543335]
[1736431488789,3.0906555,92089.0,92088.0,99.41997799]
[1736431488995,3.0906555,92089.0,92088.0,98.98452263]
[1736431489202,3.0996555,92089.0,92088.0,98.54906727]
[1736431489622,3.1996555,92089.0,92088.0,98.42910989]
[1736431489823,4.3767555,92089.0,92088.0,98.42910989]
[1736431490244,4.39332068,92089.0,92088.0,97.60610989]
[1736431490452,4.40232068,92089.0,92088.0,96.12100117]
[1736431490666,3.66432068,92089.0,92088.0,94.03600117]
[1736431490871,3.34032068,92089.0,92088.0,94.03600117]
[1736431491086,3.54932068,92089.0,92088.0,94.03600117]
[1736431491508,3.64934115,92089.0,92088.0,94.00800117]
[1736431491710,3.66734115,92089.0,92088.0,94.00800117]
[1736431491915,3.56734115,92089.0,92088.0,94.00800117]
[1736431492129,2.48250115,92089.0,92088.0,94.00800117]
[1736431492341,2.44177597,92089.0,92088.0,94.00800117]
[1736431492555,2.11683597,92089.0,92088.0,94.00800117]
[1736431493002,2.09719645,92089.0,92088.0,94.00800117]
[1736431493211,2.24981797,92089.0,92088.0,94.00800117]
[1736431493417,2.2327975,92089.0,92088.0,94.00800117]
[1736431493633,2.2417975,92089.0,92088.0,94.00800117]
[1736431493844,2.2327975,92089.0,92088.0,94.00800117]
[1736431494049,2.3327975,92089.0,92088.0,94.00800117]
[1736431494495,2.3297975,92089.0,92088.0,94.00800117]
[1736431494715,2.3337975,92089.0,92088.0,94.00800117]
[1736431494918,2.3277975,92089.0,92088.0,94.00800117]
[1736431495127,2.33854011,92089.0,92088.0,94.00800117]
[1736431495336,2.25454011,92089.0,92088.0,94.00800117]
[1736431495543,2.35454011,92089.0,92088.0,94.00800117]
[1736431495774,2.34754011,92089.0,92088.0,94.00800117]
[1736431496217,2.35654011,92089.0,92088.0,94.00800117]
[1736431496422,2.55844011,92089.0,92088.0,93.98000117]
[1736431496650,3.72654011,92089.0,92088.0,93.98000117]
[1736431496875,3.60951808,92089.0,92088.0,93.88986186]
[1736431497075,3.50761808,92089.0,92088.0,93.88986186]
[1736431497282,3.62464265,92089.0,92088.0,93.88986186]
[1736431497487,3.64764265,92089.0,92088.0,93.88986186]
[1736431497693,3.65364265,92089.0,92088.0,93.88986186]
[1736431498095,3.95364265,92089.0,92088.0,93.88986186]
[1736431498297,3.93864265,92089.0,92088.0,93.88986186]
[1736431498511,3.95664265,92089.0,92088.0,93.88986186]
[1736431499140,3.95664265,92089.0,92088.0,93.73779854]
[1736431499141,4.04366234,92089.0,92088.0,93.73779854]
[1736431499349,4.21903738,92089.0,92088.0,90.40484234]
[1736431499522,4.21903738,92089.0,92088.0,90.18984234]
[1736431500149,4.12654449,92089.0,92088.0,90.18984234]
[1736431500348,3.45685026,92089.0,92088.0,90.18984234]
[1736431500848,3.58885026,92089.0,92088.0,90.18984234]
[1736431501053,3.88885026,92089.0,92088.0,90.18984234]
[1736431501254,4.03252344,92089.0,92088.0,90.18984234]
[1736431501461,3.93252344,92089.0,92088.0,90.18984234]
[1736431501668,3.93252344,92089.0,92088.0,90.16184234]
[1736431502288,4.03252344,92089.0,92088.0,90.16184234]
[1736431502504,4.03252344,92089.0,92088.0,89.75192327]
[1736431502505,4.06372344,92089.0,92088.0,89.75192327]
[1736431502712,4.63752836,92089.0,92088.0,89.41311441]
[1736431502883,3.79752836,92089.0,92088.0,89.41311441]
[1736431503097,5.48148992,92089.0,92088.0,89.28015418]
[1736431503308,5.48148992,92089.0,92088.0,89.26521759]
[1736431503516,5.48148992,92089.0,92088.0,88.66121759]
[1736431503717,5.5803796,92089.0,92088.0,88.66121759]
[1736431504041,5.64861624,92089.0,92088.0,88.48453118]
[1736431504258,5.45775089,92089.0,92088.0,88.08736721]
[1736431504496,5.11975089,92089.0,92088.0,86.76736721]
[1736431504701,4.30011632,92089.0,92088.0,86.62536721]
[1736431504903,4.90295632,92089.0,92088.0,86.47436721]
[1736431505036,4.31970492,92089.0,92088.0,86.47436721]
[1736431505240,3.33200188,92089.0,92088.0,86.47436721]
[1736431505444,2.75975554,92089.0,92088.0,86.47436721]
[1736431505736,2.72566466,92089.0,92088.0,86.52346721]
[1736431505965,2.3940167,92089.0,92088.0,86.52346721]
[1736431506148,2.4030167,92089.0,92088.0,86.52346721]
[1736431506379,2.4030167,92089.0,92088.0,86.40094565]
[1736431506380,2.34378006,92089.0,92088.0,86.40094565]
[1736431506589,2.34378006,92089.0,92088.0,86.37294565]
[1736431507408,2.35278006,92089.0,92088.0,86.37294565]
[1736431507621,2.34378006,92089.0,92088.0,86.37294565]
[1736431507820,2.36080252,92089.0,92088.0,86.37294565]
[1736431508303,2.50780252,92089.0,92088.0,86.37294565]
[1736431508692,2.51680252,92089.0,92088.0,86.37294565]
[1736431508898,2.50780252,92089.0,92088.0,86.37294565]
[1736431509103,2.50180252,92089.0,92088.0,86.37294565]
[1736431509368,2.51880252,92089.0,92088.0,86.37294565]
[1736431509825,2.51080252,92089.0,92088.0,86.37294565]
[1736431510261,2.51080252,92089.0,92088.0,86.36951239]
[1736431511141,2.40180252,92089.0,92088.0,86.36951239]
[1736431511358,2.50180252,92089.0,92088.0,86.36951239]
[1736431511612,2.49378006,92089.0,92088.0,86.34151239]
[1736431511848,2.49078006,92089.0,92088.0,86.34151239]
[1736431512071,2.49978006,92089.0,92088.0,86.34151239]
[1736431512333,3.89388006,92089.0,92088.0,86.29241239]
[1736431512577,3.78759484,92089.0,92088.0,86.29241239]
[1736431512809,3.79959484,92089.0,92088.0,86.29241239]
[1736431513011,3.89217733,92089.0,92088.0,86.29241239]
[1736431513251,3.78259484,92089.0,92088.0,86.29241239]
[1736431513484,3.00559484,92089.0,92088.0,86.29241239]
[1736431513697,3.16483148,92089.0,92088.0,85.33541239]
[1736431513908,7.8091167,92089.0,92088.0,85.33541239]
[1736431514324,6.8041167,92089.0,92088.0,85.38331239]
[1736431514560,5.1251167,92089.0,92088.0,85.46041239]
[1736431514777,5.07488006,92089.0,92088.0,85.46041239]
[1736431514984,5.06588006,92089.0,92088.0,85.46041239]
[1736431515199,5.22988006,92089.0,92088.0,85.46041239]
[1736431515413,5.63888006,92089.0,92088.0,85.33541239]
[1736431515629,5.14788006,92089.0,92088.0,85.33541239]
[1736431515854,5.12804006,92089.0,92088.0,85.33541239]
[1736431516067,5.22804006,92089.0,92088.0,85.33541239]
[1736431516281,5.23704006,92089.0,92088.0,85.33541239]
[1736431516502,5.33881575,92089.0,92088.0,85.33541239]
[1736431516750,6.20604006,92089.0,92088.0,85.30741239]
[1736431516985,6.3177737,92089.0,92088.0,85.30741239]
[1736431517199,6.31954939,92089.0,92088.0,85.30741239]
[1736431517670,6.30967588,92089.0,92088.0,82.79665676]
[1736431517880,6.30967588,92089.0,92088.0,82.77493876]
[1736431518085,6.2197862,92089.0,92088.0,82.70978476]
[1736431518345,6.25794108,92089.0,92088.0,82.68806676]
[1736431518600,6.26100294,92089.0,92088.0,82.68806676]
[1736431518844,6.27000294,92089.0,92088.0,82.31806676]
[1736431519098,6.57000294,92089.0,92088.0,82.31806676]
[1736431519354,6.57009471,92089.0,92088.0,82.31806676]
[1736431519770,6.56919253,92089.0,92088.0,82.31806676]
[1736431519984,6.56919253,92089.0,92088.0,82.29627676]
[1736431520607,6.5461136,92089.0,92088.0,82.29627676]
[1736431521046,5.6231136,92089.0,92088.0,82.29627676]
[1736431521262,5.72412231,92089.0,92088.0,82.29627676]
[1736431521472,5.70153895,92089.0,92088.0,82.20461556]
[1736431521694,5.79404234,92089.0,92088.0,82.06361556]
[1736431521944,5.69253895,92089.0,92088.0,82.06361556]
[1736431522159,5.40037895,92089.0,92088.0,82.06361556]
[1736431522412,5.42153895,92089.0,92088.0,82.06361556]
[1736431522650,5.32153895,92089.0,92088.0,82.06361556]
[1736431522889,5.19844718,92089.0,92088.0,82.06361556]
[1736431523143,4.8301323,92089.0,92088.0,82.06361556]
[1736431523360,4.5981323,92089.0,92088.0,82.06361556]
[1736431523581,4.69538582,92089.0,92088.0,82.06361556]
[1736431523790,4.71838582,92089.0,92088.0,82.06361556]
[1736431523998,4.70938582,92089.0,92088.0,82.06361556]
[1736431524212,1.5831323,92089.0,92088.0,82.06361556]
[1736431524420,1.83326766,92089.0,92088.0,82.06361556]
[1736431524641,6.52926766,92089.0,92088.0,82.06361556]
[1736431524862,7.62329465,92089.0,92088.0,81.95502556]
[1736431525302,7.52329465,92089.0,92088.0,81.95502556]
[1736431525518,7.38813465,92089.0,92088.0,81.95502556]
[1736431525730,6.22129465,92089.0,92088.0,81.95502556]
[1736431525953,6.33529465,92089.0,92088.0,81.95502556]
[1736431526172,6.40268564,92089.0,92088.0,81.95502556]
[1736431526598,6.41168564,92089.0,92088.0,81.92702556]
[1736431527277,6.40268564,92089.0,92088.0,81.92702556]
[1736431527915,6.41168564,92089.0,92088.0,81.92702556]
[1736431528094,6.40268564,92089.0,92088.0,81.92702556]
[1736431528525,6.41168564,92089.0,92088.0,81.75043556]
[1736431528750,6.40268564,92089.0,92088.0,81.73543556]
[1736431528961,5.89052564,92089.0,92088.0,81.73543556]
[1736431529174,6.23252329,92089.0,92088.0,81.73543556]
[1736431529388,6.57486376,92089.0,92088.0,81.73543556]
[1736431529591,6.28702376,92089.0,92088.0,81.73543556]
[1736431529830,6.14428876,92089.0,92088.0,81.73543556]
[1736431530043,5.88578876,92089.0,92088.0,81.73543556]
[1736431530252,5.4370076,92089.0,92088.0,81.73543556]
[1736431530463,5.4460076,92089.0,92088.0,81.73543556]
[1736431530672,5.4370076,92089.0,92088.0,81.73543556]
[1736431531079,5.37861661,92089.0,92088.0,81.73543556]
[1736431531287,5.51977268,92089.0,92088.0,81.73543556]
[1736431531495,4.80843332,92089.0,92088.0,81.70743556]
[1736431531701,4.81743332,92089.0,92088.0,81.70743556]
[1736431532111,5.13763719,92089.0,92088.0,81.70743556]
[1736431532345,5.14663719,92089.0,92088.0,81.70743556]
[1736431532551,5.12547719,92089.0,92088.0,81.70743556]
[1736431532766,5.1362629,92089.0,92088.0,81.70743556]
[1736431532968,4.82092395,92089.0,92088.0,81.70743556]
[1736431533179,4.66892395,92089.0,92088.0,81.70743556]
[1736431533390,5.75806315,92089.0,92088.0,81.70743556]
[1736431533601,5.49956315,92089.0,92088.0,81.70743556]